bitfinex/quotes_SOLUSD_20241223
["timestamp","ask_amount","ask_price","bid_price","bid_amount"]
[1734972442599,1.541,184.25,184.18,20.4547321]
[1734972443095,1.541,184.25,184.14,20.4547321]
[1734972443096,1.541,184.25,184.2,20.4547321]
[1734972443295,1.541,184.25,184.18,20.4547321]
[1734972445113,1.541,184.25,184.15,0.81416003]
[1734972445114,6.488,184.27,184.2,20.4547321]
[1734972446210,0.675366,184.28,184.27,20.0]
[1734972446408,0.675366,184.28,184.27,64.3571061]
[1734972446731,0.675366,184.28,184.27,40.4547321]
[1734972447102,0.675366,184.28,184.27,65.17076885]
[1734972447308,6.2499,184.42,184.28,23.776884]
[1734972447513,6.2499,184.42,184.31,20.4547321]
[1734972448529,6.2499,184.42,184.29,20.4547321]
[1734972448832,6.2499,184.42,184.31,20.4547321]
[1734972450096,6.2499,184.42,184.31,44.3571061]
[1734972450301,6.2499,184.42,184.31,20.4547321]
[1734972450520,6.2499,184.42,184.31,44.2316161]
[1734972450829,6.2499,184.42,184.31,44.3571061]
[1734972450994,5.534,184.32,184.31,44.3571061]
[1734972451193,5.534,184.32,184.31,64.8118382]
[1734972451625,5.534,184.32,184.31,44.2316161]
[1734972451928,5.534,184.32,184.31,20.4547321]
[1734972452636,5.534,184.32,184.29,20.4547321]
[1734972452805,5.534,184.32,184.27,20.4547321]
[1734972453129,5.534,184.32,184.29,20.4547321]
[1734972454529,5.534,184.32,184.25,20.4547321]
[1734972455237,5.534,184.32,184.29,20.4547321]
[1734972456200,12.3084,184.31,184.13,21.83336325]
[1734972456507,12.3084,184.31,184.17,20.4547321]
[1734972457028,12.3084,184.31,184.19,20.4547321]
[1734972457913,8.2392,184.31,184.19,20.4547321]
[1734972458430,8.2392,184.31,184.21,20.4547321]
[1734972459132,6.6225,184.31,184.25,20.4547321]
[1734972460227,5.534,184.32,184.25,20.4547321]
[1734972461019,5.534,184.32,184.26,23.776884]
[1734972462134,5.534,184.32,184.25,20.4547321]
[1734972462835,5.534,184.32,184.27,20.4547321]
[1734972463037,5.534,184.32,184.28,24.59056266]
[1734972463278,5.534,184.32,184.29,20.4547321]
[1734972463941,5.534,184.32,184.25,44.2316161]
[1734972464234,5.534,184.32,184.27,20.4547321]
[1734972465038,5.534,184.32,184.31,20.4547321]
[1734972465611,5.534,184.32,184.29,44.2316161]
[1734972465829,5.534,184.32,184.31,40.4547321]
[1734972466018,5.534,184.32,184.31,64.3571061]
[1734972466644,6.981566,184.46,184.32,23.902374]
[1734972467030,6.981566,184.46,184.33,20.4547321]
[1734972468945,0.675366,184.46,184.35,13.5611]
[1734972469144,0.675366,184.46,184.39,20.4547321]
[1734972469549,0.675366,184.46,184.4,0.81306237]
[1734972470553,0.675366,184.46,184.41,44.2316161]
[1734972470963,4.0624,184.62,184.5,61.3641963]
[1734972471119,0.675366,184.82,184.61,60.9094642]
[1734972471319,0.675366,184.82,184.6,32.74]
[1734972471320,1.79480943,184.74,184.73,40.9094642]
[1734972471554,0.675366,184.82,184.76,20.0]
[1734972471745,0.675366,184.82,184.81,20.4547321]
[1734972472121,0.675366,184.82,184.81,66.04789719]
[1734972472319,8.39837994,184.94,184.81,44.55627168]
[1734972472568,8.39837994,184.94,184.91,20.4547321]
[1734972472722,8.39837994,184.94,184.93,20.4547321]
[1734972473328,4.0518,185.11,184.93,20.4547321]
[1734972473553,4.0518,185.11,184.95,20.4547321]
[1734972473760,274.50872401,185.25,184.95,20.4547321]
[1734972474118,274.50872401,185.25,184.87,0.81083854]
[1734972474119,274.50872401,185.25,184.97,32.89268538]
[1734972474464,270.90062792,185.28,184.99,59.84915496]
[1734972474706,270.90062792,185.28,184.99,26.95646958]
[1734972475014,4.0488,185.24,185.02,26.49643243]
[1734972475181,4.0488,185.24,185.03,0.35259438]
[1734972475379,4.0488,185.24,185.03,26.87903923]
[1734972475584,177.55847326,185.28,185.03,0.35257533]
[1734972475785,270.90062792,185.28,185.01,26.38413386]
[1734972475981,270.90062792,185.28,184.97,0.81056039]
[1734972475982,270.90062792,185.28,185.09,31.62860868]
[1734972476187,270.90062792,185.28,185.12,15.81430434]
[1734972476398,93.93678698,185.09,185.04,10.50918553]
[1734972476615,30.0,185.25,185.04,10.50918553]
[1734972476777,30.0,185.25,185.03,47.44291302]
[1734972476973,0.12549,185.22,185.04,0.14483917]
[1734972477177,3.4578,185.21,185.03,47.44291302]
[1734972477597,4.0481,185.27,185.05,32.89268538]
[1734972477805,4.0481,185.27,185.07,32.89268538]
[1734972477990,4.0481,185.27,185.11,32.89268538]
[1734972478198,4.0472,185.32,185.11,32.89268538]
[1734972478393,4.0472,185.32,185.12,23.776884]
[1734972478573,3.4578,185.38,185.15,32.89268538]
[1734972478772,2.6976,185.35,185.08,13.5072]
[1734972479115,2.6976,185.35,185.1,32.89268538]
[1734972479419,2.6976,185.35,185.12,32.89268538]
[1734972479577,2.6976,185.35,185.08,32.89268538]
[1734972480190,2.6976,185.35,185.1,32.89268538]
[1734972480515,2.6976,185.35,185.08,32.89268538]
[1734972480826,2.6976,185.35,185.12,32.89268538]
[1734972480983,2.6978,185.33,185.14,32.89268538]
[1734972481383,2.6978,185.33,185.12,32.89268538]
[1734972481802,2.6978,185.33,185.18,32.89268538]
[1734972482236,13.4865,185.37,185.18,32.89268538]
[1734972482437,13.4865,185.37,185.2,32.89268538]
[1734972483444,2.6978,185.34,185.21,32.89268538]
[1734972483743,2.6978,185.34,185.19,32.89268538]
[1734972483949,2.6978,185.34,185.21,32.89268538]
[1734972484343,2.6967,185.41,185.17,0.80969203]
[1734972484647,2.6967,185.41,185.27,32.89268538]
[1734972485024,2.6967,185.41,185.29,32.89268538]
[1734972485517,2.6954,185.5,185.31,32.89268538]
[1734972485721,2.6954,185.5,185.33,32.89268538]
[1734972486128,2.6954,185.5,185.35,32.89268538]
[1734972486346,2.6954,185.5,185.39,32.89268538]
[1734972487207,2.6954,185.5,185.24,0.8087552]
[1734972487409,8.0862,185.5,185.29,32.89268538]
[1734972487838,8.0862,185.5,185.24,0.8087552]
[1734972487839,20.0,185.47,185.32,32.89268538]
[1734972488238,8.0862,185.5,185.34,32.89268538]
[1734972488533,8.0862,185.5,185.36,32.89268538]
[1734972488909,8.0862,185.5,185.34,32.89268538]
[1734972489337,2.6957,185.48,185.34,32.89268538]
[1734972489537,5.3893,185.56,185.38,32.89268538]
[1734972489828,5.3893,185.56,185.34,32.89268538]
[1734972490031,5.3893,185.56,185.26,20.0]
[1734972490032,5.3893,185.56,185.38,32.89268538]
[1734972490249,279.24362432,185.71,185.42,32.89268538]
[1734972490407,279.24362432,185.71,185.44,32.89268538]
[1734972490610,2.6947,185.55,185.44,32.89268538]
[1734972490956,2.6947,185.55,185.42,32.89268538]
[1734972491110,5.3872,185.63,185.49,32.89268538]
[1734972491111,2.6941,185.59,185.49,32.89268538]
[1734972491310,5.3872,185.63,185.45,32.89268538]
[1734972491544,2.6946,185.55,185.43,32.89268538]
[1734972491756,2.6946,185.55,185.41,32.89268538]
[1734972492113,2.6946,185.55,185.47,32.89268538]
[1734972492533,2.6946,185.55,185.45,32.89268538]
[1734972492743,2.6946,185.56,185.45,32.89268538]
[1734972493250,2.6946,185.56,185.43,33.70113349]
[1734972493452,2.6946,185.56,185.43,32.89268538]
[1734972493837,2.6954,185.5,185.41,32.89268538]
[1734972494135,2.6954,185.5,185.37,32.89268538]
[1734972494330,2.6954,185.5,185.46,32.89268538]
[1734972494535,2.6948,185.54,185.48,32.89268538]
[1734972494726,2.6942,185.58,185.5,32.89268538]
[1734972494928,2.6942,185.58,185.41,0.80888551]
[1734972494929,2.6942,185.58,185.48,32.89268538]
[1734972495238,2.6942,185.58,185.41,0.80888551]
[1734972495447,2.6947,185.55,185.46,32.89268538]
[1734972495657,2.6947,185.55,185.48,32.89268538]
[1734972495950,2.6941,185.59,185.48,32.89268538]
[1734972496121,5.3872,185.63,185.5,32.89268538]
[1734972496316,2.6936,185.63,185.5,32.89268538]
[1734972496640,2.6936,185.63,185.5,33.01817538]
[1734972496818,2.693,185.67,185.5,56.79505938]
[1734972497338,3.4578,185.77,185.54,32.89268538]
[1734972497519,8.0748,185.76,185.52,32.89268538]
[1734972497954,8.0748,185.76,185.54,32.89268538]
[1734972498154,8.0748,185.76,185.59,32.89268538]
[1734972498338,8.0748,185.76,185.55,33.70074053]
[1734972498649,2.6916,185.76,185.57,32.89268538]
[1734972498853,4.0374,185.76,185.59,32.89268538]
[1734972499052,4.0374,185.76,185.57,0.80787731]
[1734972499255,4.0374,185.76,185.53,23.776884]
[1734972499455,4.16329,185.74,185.57,32.89268538]
[1734972499735,4.0378,185.74,185.55,56.66956938]
[1734972499943,4.0378,185.74,185.55,32.89268538]
[1734972500745,0.12549,185.73,185.53,32.89268538]
[1734972500920,23.902374,185.73,185.53,32.89268538]
[1734972501544,4.0383,185.72,185.51,33.70088077]
[1734972501718,1.3461,185.72,185.56,0.12549]
[1734972502047,1.3461,185.72,185.58,0.12549]
[1734972502241,1.3461,185.72,185.6,0.12549]
[1734972502444,1.3458,185.76,185.62,0.12549]
[1734972502629,1.3458,185.76,185.64,23.902374]
[1734972502827,1.3459,185.74,185.59,32.89268538]
[1734972503125,1.3459,185.74,185.57,32.89268538]
[1734972503336,1.3459,185.74,185.59,32.89268538]
[1734972503523,1.3459,185.74,185.57,32.89268538]
[1734972503931,1.3459,185.74,185.55,56.66956938]
[1734972504127,0.12549,185.73,185.53,32.89268538]
[1734972504548,23.776884,185.73,185.55,32.89268538]
[1734972504726,20.0,185.7,185.55,32.89268538]
[1734972505350,4.0389,185.69,185.51,32.89268538]
[1734972505544,20.0,185.65,185.51,32.89268538]
[1734972505747,20.0,185.65,185.49,32.89268538]
[1734972506359,20.0,185.61,185.43,32.89268538]
[1734972506658,20.0,185.61,185.45,32.89268538]
[1734972506862,20.0,185.57,185.41,39.07338538]
[1734972507065,20.0,185.53,185.39,32.89268538]
[1734972507230,20.0,185.53,185.43,32.89268538]
[1734972507429,1.3475,185.52,185.41,32.89268538]
[1734972507657,1.3475,185.52,185.37,32.89268538]
[1734972507964,23.902374,185.51,185.33,32.89268538]
[1734972508253,20.0,185.44,185.31,24.73475404]
[1734972508565,20.0,185.44,185.27,32.89268538]
[1734972509055,23.776884,185.43,185.27,32.89268538]
[1734972509222,1.3485,185.39,185.23,0.80917951]
[1734972509422,1.3485,185.39,185.29,32.89268538]
[1734972509941,1.3485,185.39,185.31,32.89268538]
[1734972510126,4.0446,185.43,185.31,32.89268538]
[1734972510531,1.3482,185.43,185.29,32.89268538]
[1734972510734,20.0,185.39,185.25,32.89268538]
[1734972511168,20.0,185.39,185.27,32.89268538]
[1734972511334,20.0,185.4,185.27,32.89268538]
[1734972511528,1.3482,185.43,185.28,0.12549]
[1734972511729,1.3482,185.43,185.29,32.89268538]
[1734972511934,1.3482,185.43,185.32,23.902374]
[1734972512176,1.3476,185.51,185.38,23.902374]
[1734972512485,1.3476,185.51,185.35,32.89268538]
[1734972512651,1.3476,185.51,185.33,33.70138044]
[1734972513041,1.3476,185.51,185.3,32.89268538]
[1734972513242,1.3476,185.51,185.32,0.12549]
[1734972513440,4.0428,185.51,185.34,0.12549]
[1734972513668,4.0428,185.51,185.34,33.01817538]
[1734972513881,4.0428,185.51,185.35,0.80899429]
[1734972514180,4.0428,185.51,185.36,33.01817538]
[1734972514346,4.0428,185.51,185.36,23.902374]
[1734972514558,4.0428,185.51,185.36,56.79505938]
[1734972514759,1.3476,185.51,185.38,33.01817538]
[1734972515070,1.3476,185.51,185.37,0.80873949]
[1734972515250,1.3476,185.51,185.32,32.89268538]
[1734972515439,1.3476,185.51,185.3,32.89268538]
[1734972515640,0.12549,185.5,185.29,0.80870564]
[1734972515945,23.776884,185.5,185.28,32.89268538]
[1734972516149,0.12549,185.44,185.24,32.89268538]
[1734972516475,0.12549,185.44,185.23,0.80929899]
[1734972516476,2.0258,185.46,185.23,0.80929899]
[1734972516644,23.776884,185.45,185.22,32.89268538]
[1734972516848,23.776884,185.43,185.22,32.89268538]
[1734972517055,3.4578,185.44,185.22,33.70211118]
[1734972517252,27.821484,185.43,185.22,33.70211118]
[1734972517455,0.12549,185.42,185.22,32.89268538]
[1734972517675,0.12549,185.42,185.2,40.04835393]
[1734972517866,20.0,185.4,185.2,40.04835393]
[1734972518552,4.0455,185.39,185.21,0.12549]
[1734972518749,4.0455,185.39,185.21,23.776884]
[1734972518960,4.0455,185.39,185.21,27.35793947]
[1734972519286,4.0455,185.39,185.22,0.80949936]
[1734972519698,4.0446,185.43,185.27,0.12549]
[1734972519901,4.0446,185.43,185.26,32.89268538]
[1734972520071,4.0446,185.43,185.24,32.89268538]
[1734972520268,4.0446,185.43,185.23,0.12549]
[1734972520665,1.3482,185.43,185.39,32.89268538]
[1734972520982,1.3475,185.52,185.39,32.89268538]
[1734972521382,1.3475,185.52,185.41,0.12549]
[1734972521783,3.4061,185.56,185.43,56.79505938]
[1734972521977,3.4061,185.56,185.37,32.89268538]
[1734972522193,3.4061,185.56,185.38,23.776884]
[1734972522387,3.4061,185.56,185.41,0.12549]
[1734972522585,3.4061,185.56,185.41,0.93410252]
[1734972522778,1.347,185.6,185.43,0.12549]
[1734972523291,1.347,185.6,185.45,23.902374]
[1734972523686,1.347,185.6,185.45,57.60347811]
[1734972523863,1.347,185.6,185.46,9.31472679]
[1734972524496,1.347,185.6,185.46,3.58257437]
[1734972524697,1.347,185.6,185.41,0.12549]
[1734972524902,1.347,185.6,185.47,3.58257437]
[1734972525081,21.347,185.6,185.47,3.58257437]
[1734972525282,20.0,185.56,185.47,3.58257437]
[1734972525485,20.0,185.56,185.42,5.73215242]
[1734972525880,24.0413,185.58,185.43,3.59355349]
[1734972526487,20.0,185.54,185.38,5.74886489]
[1734972526681,20.0,185.5,185.38,5.74886489]
[1734972526895,23.4578,185.49,185.38,5.74886489]
[1734972527284,1.3478,185.48,185.38,5.74886489]
[1734972527688,20.0,185.47,185.38,5.74886489]
[1734972527891,20.0,185.47,185.39,3.60112154]
[1734972528099,1.3478,185.48,185.39,3.60112154]
[1734972528581,1.3478,185.48,185.4,3.60112154]
[1734972528988,1.3478,185.48,185.41,3.60112154]
[1734972529513,3.4104,185.52,185.42,3.60112154]
[1734972529887,3.4104,185.52,185.43,3.60112154]
[1734972530386,3.4104,185.52,185.45,0.12549]
[1734972530583,1.3473,185.56,185.45,0.12549]
[1734972530782,1.3473,185.56,185.46,9.36392421]
[1734972531176,1.3473,185.56,185.47,3.60112154]
[1734972531379,4.7379,185.6,185.47,3.60112154]
[1734972531380,3.391,185.6,185.47,32.89268538]
[1734972531590,3.391,185.6,185.48,3.72831216]
[1734972532490,3.391,185.6,185.5,0.12549]
[1734972532678,23.391,185.6,185.5,0.12549]
[1734972532880,23.391,185.6,185.49,3.60282216]
[1734972533103,20.0,185.58,185.44,23.776884]
[1734972533430,23.391,185.6,185.46,5.76157655]
[1734972533586,23.391,185.6,185.45,9.36344707]
[1734972534283,23.391,185.6,185.44,0.12549]
[1734972534491,26.0849,185.6,185.44,0.12549]
[1734972534699,3.391,185.6,185.49,0.12549]
[1734972535626,3.391,185.6,185.47,0.12549]
[1734972535993,3.391,185.6,185.44,0.12549]
[1734972536193,3.391,185.6,185.44,23.902374]
[1734972536627,23.391,185.6,185.44,23.902374]
[1734972536825,23.5781228,185.6,185.44,23.902374]
[1734972537596,26.2720228,185.6,185.45,3.6014582]
[1734972538012,26.2720228,185.6,185.39,2.96188356]
[1734972538329,20.0,185.56,185.39,32.89268538]
[1734972538502,20.0,185.56,185.4,3.60332948]
[1734972538699,20.0,185.57,185.4,3.60332948]
[1734972538995,20.0,185.57,185.39,32.89268538]
[1734972539213,20.0,185.57,185.43,0.12549]
[1734972539410,1.5341228,185.6,185.44,32.89268538]
[1734972539624,1.5341228,185.6,185.48,32.89268538]
[1734972539625,0.1871228,185.6,185.48,32.89268538]
[1734972539797,0.1871228,185.6,185.46,33.70093495]
[1734972539997,0.1871228,185.6,185.46,0.80824957]
[1734972540198,1.347,185.59,185.47,0.12549]
[1734972540412,1.347,185.59,185.44,0.80848978]
[1734972540628,1.347,185.59,185.42,32.89268538]
[1734972540928,1.347,185.59,185.43,0.80863502]
[1734972541109,0.1871228,185.6,185.44,56.79505938]
[1734972541436,0.1871228,185.6,185.42,56.66956938]
[1734972541644,0.1871228,185.6,185.46,32.89268538]
[1734972541798,1.5341228,185.6,185.47,0.93385948]
[1734972542527,1.5341228,185.6,185.44,32.89268538]
[1734972542729,1.5341228,185.6,185.45,0.80845119]
[1734972543104,1.5341228,185.6,185.43,0.80853879]
[1734972543463,1.5341228,185.6,185.42,32.89268538]
[1734972543642,23.776884,185.58,185.38,0.80861528]
[1734972543801,23.4578,185.51,185.34,0.80878029]
[1734972544118,23.4578,185.51,185.34,33.70146567]
[1734972544327,23.4578,185.51,185.35,3.60386866]
[1734972544623,23.4578,185.51,185.36,0.8088692]
[1734972545125,1.3477,185.5,185.34,33.70155119]
[1734972545506,1.3474,185.54,185.41,0.12549]
[1734972545719,3.4578,185.57,185.43,0.12549]
[1734972545910,3.4578,185.57,185.42,0.80846936]
[1734972546111,3.4578,185.57,185.4,32.89268538]
[1734972546316,3.4578,185.57,185.41,0.93416094]
[1734972546708,3.4578,185.57,185.43,0.12549]
[1734972546908,3.4578,185.57,185.43,0.933983]
[1734972547506,2.2029,185.59,185.45,0.12549]
[1734972547709,2.2029,185.59,185.45,0.9339519]
[1734972548024,22.2029,185.59,185.45,0.9339519]
[1734972549222,22.2029,185.59,185.45,0.12549]
[1734972549618,22.2029,185.59,185.45,24.71084125]
[1734972549848,22.2029,185.59,185.45,0.93395725]
[1734972550260,22.2029,185.59,185.35,26.9759]
[1734972550261,1.3471,185.58,185.38,32.89268538]
[1734972550461,1.3471,185.58,185.35,33.70139596]
[1734972550462,20.0,185.54,185.35,33.70139596]
[1734972550628,20.0,185.54,185.39,3.61739286]
[1734972550828,20.0,185.49,185.39,3.61739286]
[1734972551063,20.0,185.49,185.36,32.89268538]
[1734972551376,3.4578,185.53,185.37,0.80878106]
[1734972551661,3.4578,185.53,185.41,0.12549]
[1734972551861,0.1871228,185.53,185.47,0.12549]
[1734972552029,0.1871228,185.53,185.47,0.9337613]
[1734972552229,0.1871228,185.53,185.47,0.12549]
[1734972552526,0.1871228,185.53,185.45,32.89268538]
[1734972552729,0.1871228,185.53,185.45,0.12549]
[1734972553167,0.1871228,185.53,185.48,32.89268538]
[1734972553515,0.1871228,185.53,185.47,0.12549]
[1734972554376,0.1871228,185.53,185.46,0.80844285]
[1734972554534,0.1871228,185.53,185.45,0.80842156]
[1734972554871,0.1871228,185.53,185.45,0.80843293]
[1734972555565,0.1871228,185.53,185.43,33.70113594]
[1734972556074,0.1871228,185.53,185.43,0.80845056]
[1734972558380,0.1871228,185.53,185.4,32.89268538]
[1734972558687,1.5346228,185.53,185.38,33.70135344]
[1734972559288,1.5346228,185.53,185.38,0.80866806]
[1734972559589,1.5346228,185.53,185.36,33.70147557]
[1734972559787,1.5346228,185.53,185.36,0.80879019]
[1734972559977,20.0,185.49,185.34,6.3156]
[1734972560596,3.4093,185.48,185.3,32.89268538]
[1734972560884,3.4093,185.48,185.29,13.4921]
[1734972561092,20.0,185.44,185.27,33.70168672]
[1734972561404,20.0,185.36,185.3,3.62392447]
[1734972561688,22.011,185.36,185.3,3.62392447]
[1734972561902,2.011,185.36,185.3,3.62392447]
[1734972562084,2.011,185.36,185.21,33.70221378]
[1734972562275,2.011,185.36,185.27,32.89268538]
[1734972562493,2.011,185.36,185.28,0.8092328]
[1734972562666,2.011,185.36,185.28,0.80928968]
[1734972562862,20.0,185.39,185.27,0.80924889]
[1734972563266,20.0,185.39,185.26,0.80940312]
[1734972563495,20.0,185.39,185.28,3.63091165]
[1734972563796,20.0,185.39,185.29,33.70193243]
[1734972564108,1.3484,185.4,185.29,0.80924705]
[1734972564400,1.3484,185.4,185.25,32.89268538]
[1734972565095,1.3484,185.4,185.26,3.63556526]
[1734972565392,20.0,185.39,185.26,3.63556526]
[1734972565992,20.0,185.39,185.23,0.80947406]
[1734972566495,23.776884,185.38,185.21,32.89268538]
[1734972566700,20.0,185.35,185.21,32.89268538]
[1734972567069,21.3488,185.35,185.22,4.44377692]
[1734972567272,21.3488,185.35,185.22,3.63422651]
[1734972567471,21.3488,185.35,185.19,32.89268538]
[1734972567909,20.0,185.31,185.16,32.89268538]
[1734972568103,20.0,185.3,185.2,3.6321571]
[1734972568267,20.0,185.26,185.2,3.6321571]
[1734972568468,3.4578,185.25,185.2,3.6321571]
[1734972568706,20.0,185.22,185.11,32.89268538]
[1734972568907,20.0,185.22,185.11,33.70260682]
[1734972569194,20.0,185.22,185.1,5.80736051]
[1734972569195,20.0,185.22,185.12,9.43725857]
[1734972569407,20.0,185.22,185.12,42.32994395]
[1734972569610,5.4783,185.3,185.18,32.89268538]
[1734972569895,5.4783,185.3,185.16,32.89268538]
[1734972569896,1.3492,185.29,185.16,32.89268538]
[1734972570103,1.3492,185.29,185.11,32.89268538]
[1734972570283,1.3492,185.29,185.09,32.89268538]
[1734972570478,5.4783,185.3,185.13,32.89268538]
[1734972570715,5.4783,185.3,185.18,33.01817538]
[1734972571002,5.4783,185.3,185.18,32.89268538]
[1734972571166,5.4783,185.3,185.19,0.12549]
[1734972571366,5.4783,185.3,185.24,32.89268538]
[1734972571600,2.0205,185.3,185.24,32.89268538]
[1734972572069,3.4578,185.35,185.26,32.89268538]
[1734972572287,3.4578,185.35,185.24,32.89268538]
[1734972573318,3.4578,185.35,185.22,32.89268538]
[1734972573594,20.0,185.34,185.24,32.89268538]
[1734972573818,0.12549,185.33,185.16,32.89268538]
[1734972573984,0.12549,185.29,185.12,32.89268538]
[1734972574328,20.0,185.25,185.1,32.89268538]
[1734972574822,20.0,185.21,185.11,3.61847223]
[1734972575119,1.3494,185.26,185.14,32.89268538]
[1734972575329,5.6111,185.28,185.18,32.89268538]
[1734972575620,5.6111,185.28,185.13,32.89268538]
[1734972575621,20.0,185.32,185.2,32.89268538]
[1734972575780,20.0,185.31,185.2,32.89268538]
[1734972576428,20.0,185.31,185.16,32.89268538]
[1734972576780,23.776884,185.3,185.13,32.89268538]
[1734972577022,23.776884,185.3,185.11,32.89268538]
[1734972577023,0.12549,185.29,185.11,32.89268538]
[1734972577222,20.0,185.27,185.11,32.89268538]
[1734972578295,20.0,185.22,185.07,32.89268538]
[1734972579584,21.3498,185.22,185.07,32.89268538]
[1734972579791,21.3498,185.22,185.05,32.89268538]
[1734972579792,23.776884,185.21,185.05,32.89268538]
[1734972580098,20.0,185.18,185.05,32.89268538]
[1734972580715,21.3498,185.22,185.1,32.89268538]
[1734972581328,21.3498,185.22,185.08,32.89268538]
[1734972581624,21.3498,185.22,185.07,32.89268538]
[1734972581794,21.3498,185.22,185.06,32.89268538]
[1734972582504,21.3498,185.22,185.07,32.89268538]
[1734972583119,21.3498,185.22,185.05,32.89268538]
[1734972583629,24.0492,185.22,185.04,32.89268538]
[1734972583804,20.0,185.18,185.02,32.89268538]
[1734972584004,3.4578,185.17,185.02,32.89268538]
[1734972584204,3.4578,185.17,185.03,32.89268538]
[1734972584422,3.4578,185.17,185.01,33.46384078]
[1734972584597,3.4578,185.17,185.02,32.89268538]
[1734972584991,20.0,185.13,185.01,0.5711554]
[1734972585190,23.902374,185.12,185.01,0.5711554]
[1734972585397,20.0,185.09,185.01,0.5711554]
[1734972585834,3.4578,185.08,185.01,0.5711554]
[1734972586331,3.4578,185.08,184.9,6.5725]
[1734972586332,0.7735,185.03,184.9,32.89268538]
[1734972586615,0.7735,185.03,184.85,33.70371472]
[1734972586816,0.7735,185.03,184.91,32.89268538]
[1734972587017,0.7735,185.03,184.95,32.89268538]
[1734972587218,0.7735,185.03,184.96,32.89268538]
[1734972587425,0.7735,185.03,184.94,32.89268538]
[1734972587723,3.4578,185.08,184.96,0.12549]
[1734972587897,20.0,185.07,184.98,32.89268538]
[1734972588100,20.0,185.07,184.94,32.89268538]
[1734972588430,21.3508,185.07,184.94,32.89268538]
[1734972588606,21.3508,185.07,184.95,32.89268538]
[1734972588805,20.0,185.07,184.98,32.89268538]
[1734972588995,20.0,185.07,185.0,32.89268538]
[1734972589198,3.4578,185.08,185.01,32.89268538]
[1734972589393,2.1666,185.1,184.99,32.89268538]
[1734972589599,2.1666,185.1,184.97,32.89268538]
[1734972590307,2.1666,185.1,184.99,32.89268538]
[1734972590726,23.5172,185.1,184.96,0.81062453]
[1734972591057,20.0,185.06,184.88,13.5222]
[1734972591231,22.1666,185.1,184.99,32.89268538]
[1734972591410,22.1666,185.1,185.01,32.89268538]
[1734972592004,3.4578,185.13,185.05,32.89268538]
[1734972592416,2.1602,185.17,185.07,32.89268538]
[1734972592930,2.1602,185.17,185.08,0.81013987]
[1734972593335,3.4578,185.18,185.09,32.89268538]
[1734972593519,5.505,185.23,185.11,32.89268538]
[1734972594502,5.505,185.23,185.1,33.7026973]
[1734972595341,5.505,185.23,185.11,32.89268538]
[1734972595711,20.0,185.2,185.11,32.89268538]
[1734972596445,20.0,185.2,185.11,33.7027414]
[1734972597727,20.0,185.2,185.09,32.89268538]
[1734972597928,20.0,185.2,185.06,32.89268538]
[1734972598232,6.8546,185.23,185.01,33.70290771]
[1734972598233,20.0,185.16,185.01,33.70290771]
[1734972598415,3.4578,185.14,184.99,32.89268538]
[1734972598613,3.4578,185.14,184.98,32.89268538]
[1734972599144,3.4578,185.14,185.02,32.89268538]
[1734972599318,3.4578,185.14,184.99,36.50320231]
[1734972599519,2.1529,185.13,184.99,3.61051693]
[1734972599727,20.0,185.11,184.99,3.61051693]
[1734972599927,20.0,185.11,185.0,3.61051693]
[1734972600241,20.0,185.11,185.0,36.50320231]
[1734972600636,20.0,185.11,185.01,32.89268538]
[1734972600827,20.0,185.11,185.01,36.50320231]
[1734972601136,20.0,185.11,185.01,3.61051693]
[1734972601342,20.0,185.11,185.02,3.61051693]
[1734972601539,2.1529,185.13,185.04,32.89268538]
[1734972601740,3.4578,185.14,185.06,32.89268538]
[1734972601925,5.6107,185.19,185.06,32.89268538]
[1734972602311,5.6107,185.19,185.04,32.89268538]
[1734972602645,1.35,185.18,185.02,32.89268538]
[1734972602951,5.6107,185.19,185.05,3.62345465]
[1734972603242,5.6107,185.19,185.03,3.62345465]
[1734972603243,23.776884,185.18,185.03,3.62345465]
[1734972603551,20.0,185.15,185.03,3.62345465]
[1734972603726,23.902374,185.14,185.04,9.42912014]
[1734972603926,20.0,185.11,185.04,9.42912014]